[Event "Saint Louis Masters"]
[Date "2024.12.06"]
[White "Robson, Ray"]
[Black "Quesada Perez, Yasser"]
[WhiteElo "2700"]
[BlackElo "2577"]
[Round "7.8"]
[Result "1-0"]
[TimeControl "5400+30"]

1. Nf3 {[%clk 01:23:56] [%emt 00:06:58]} d5 {[%clk 01:30:18] [%emt 00:00:47]} 2.
g3 {[%clk 01:24:02] [%emt 00:00:24]} Nf6 {[%clk 01:29:59] [%emt 00:00:49]} 3.
Bg2 {[%clk 01:24:13] [%emt 00:00:18]} g6 {[%clk 01:29:24] [%emt 00:01:06]} 4. c4
{[%clk 01:19:40] [%emt 00:05:03]} c6 {[%clk 01:26:56] [%emt 00:02:59]} 5. b3
{[%clk 01:19:34] [%emt 00:00:36]} Bg7 {[%clk 01:26:46] [%emt 00:00:39]} 6. Bb2
{[%clk 01:19:49] [%emt 00:00:15]} O-O {[%clk 01:27:00] [%emt 00:00:16]} 7. O-O
{[%clk 01:19:38] [%emt 00:00:41]} Bg4 {[%clk 01:24:05] [%emt 00:03:26]} 8. d4
{[%clk 01:15:20] [%emt 00:04:47]} Bxf3 {[%clk 01:19:09] [%emt 00:05:26]} 9. Bxf3
{[%clk 01:13:56] [%emt 00:01:54]} e6 {[%clk 01:19:33] [%emt 00:00:06]} 10. Nd2
{[%clk 01:09:05] [%emt 00:05:21]} Nbd7 {[%clk 01:19:27] [%emt 00:00:37]} 11. e3
{[%clk 01:00:35] [%emt 00:09:00]} Re8 {[%clk 01:16:45] [%emt 00:03:11]} 12. Bg2
{[%clk 00:59:34] [%emt 00:01:30]} a5 {[%clk 01:16:27] [%emt 00:00:49]} 13. a4
{[%clk 00:52:49] [%emt 00:07:15]} Rc8 {[%clk 01:14:36] [%emt 00:02:21]} 14. Qc2
{[%clk 00:52:21] [%emt 00:00:58]} c5 {[%clk 01:09:12] [%emt 00:05:54]} 15. Rac1
{[%clk 00:47:15] [%emt 00:05:36]} cxd4 {[%clk 01:06:34] [%emt 00:03:09]} 16.
Bxd4 {[%clk 00:44:34] [%emt 00:03:10]} Nb8 {[%clk 01:06:10] [%emt 00:00:54]} 17.
Rfd1 {[%clk 00:37:52] [%emt 00:07:13]} Nc6 {[%clk 01:05:15] [%emt 00:01:25]} 18.
Bxf6 {[%clk 00:35:13] [%emt 00:03:08]} Bxf6 {[%clk 00:38:30] [%emt 00:27:16]}
19. cxd5 {[%clk 00:35:26] [%emt 00:00:17]} exd5 {[%clk 00:33:17] [%emt
00:05:43]} 20. Ne4 {[%clk 00:35:21] [%emt 00:00:34]} Bd4 {[%clk 00:30:45] [%emt
00:03:02]} 21. exd4 {[%clk 00:34:19] [%emt 00:01:33]} dxe4 {[%clk 00:31:11]
[%emt 00:00:05]} 22. Bxe4 {[%clk 00:33:08] [%emt 00:01:40]} Qd7 {[%clk 00:29:28]
[%emt 00:02:13]} 23. Qd3 {[%clk 00:25:56] [%emt 00:07:41]} Nb4 {[%clk 00:28:27]
[%emt 00:01:32]} 24. Qf3 {[%clk 00:26:01] [%emt 00:00:24]} Rxc1 {[%clk 00:23:36]
[%emt 00:05:22]} 25. Rxc1 {[%clk 00:26:23] [%emt 00:00:07]} Re7 {[%clk 00:23:40]
[%emt 00:00:27]} 26. d5 {[%clk 00:22:32] [%emt 00:04:21]} f5 {[%clk 00:22:53]
[%emt 00:01:17]} 27. Bd3 {[%clk 00:22:25] [%emt 00:00:36]} Kg7 {[%clk 00:23:03]
[%emt 00:00:21]} 28. Bc4 {[%clk 00:21:24] [%emt 00:01:31]} Qd6 {[%clk 00:22:08]
[%emt 00:01:25]} 29. Qc3+ {[%clk 00:19:54] [%emt 00:01:59]} Kh6 {[%clk 00:19:38]
[%emt 00:03:01]} 30. Rd1 {[%clk 00:17:39] [%emt 00:02:45]} Re4 {[%clk 00:18:28]
[%emt 00:01:41]} 31. Rd4 {[%clk 00:16:39] [%emt 00:01:29]} Qf6 {[%clk 00:09:51]
[%emt 00:09:07]} 32. Qd2+ {[%clk 00:15:40] [%emt 00:01:29]} Kg7 {[%clk
00:10:20]} 33. Rxe4 {[%clk 00:15:48] [%emt 00:00:23]} fxe4 {[%clk 00:10:49]
[%emt 00:00:01]} 34. d6 {[%clk 00:14:16] [%emt 00:02:02]} Nc6 {[%clk 00:10:53]
[%emt 00:00:27]} 35. Qd5 {[%clk 00:10:16] [%emt 00:04:29]} e3 {[%clk 00:08:20]
[%emt 00:03:02]} 36. fxe3 {[%clk 00:10:11] [%emt 00:00:35]} Qa1+ {[%clk
00:08:45] [%emt 00:00:06]} 37. Kg2 {[%clk 00:09:56] [%emt 00:00:45]} Qb2+ {[%clk
00:09:11] [%emt 00:00:04]} 38. Kh3 {[%clk 00:09:48] [%emt 00:00:37]} Ne5 {[%clk
00:09:35] [%emt 00:00:07]} 39. Qg8+ {[%clk 00:07:08] [%emt 00:03:10]} Kh6 {[%clk
00:09:49] [%emt 00:00:17]} 40. Qf8+ {[%clk 00:07:15] [%emt 00:00:22]} Kh5 {[%clk
00:10:15] [%emt 00:00:04]} 41. Qf4 {[%clk 00:06:10] [%emt 00:01:35]} g5 {[%clk
00:10:34] [%emt 00:00:11]} 42. g4+ {[%clk 00:05:47] [%emt 00:00:53]} Kg6 {[%clk
00:10:52] [%emt 00:00:12]} 43. Qf5+ {[%clk 00:06:04] [%emt 00:00:13]} 1-0

[Site "Europe Echecs"]

[Event "Saint Louis Masters"]
[Date "2024.12.06"]
[White "Vazquez, Guillermo"]
[Black "Mishra, Abhimanyu"]
[WhiteElo "2569"]
[BlackElo "2616"]
[Round "7.9"]
[Result "1/2-1/2"]
[TimeControl "5400+30"]

1. e4 {[%clk 01:30:56] [%emt 00:00:02]} c5 {[%clk 01:30:16] [%emt 00:00:45]} 2.
Nf3 {[%clk 01:31:05] [%emt 00:00:21]} d6 {[%clk 01:30:09] [%emt 00:00:24]} 3. d4
{[%clk 01:30:00] [%emt 00:01:48]} cxd4 {[%clk 01:30:25] [%emt 00:00:14]} 4. Qxd4
{[%clk 01:30:25] [%emt 00:00:05]} Nc6 {[%clk 01:29:52] [%emt 00:01:04]} 5. Bb5
{[%clk 01:28:29] [%emt 00:02:25]} Bd7 {[%clk 01:29:17] [%emt 00:01:05]} 6. Qd3
{[%clk 01:28:50] [%emt 00:00:09]} g6 {[%clk 01:27:15] [%emt 00:02:32]} 7. O-O
{[%clk 01:28:53] [%emt 00:00:26]} Bg7 {[%clk 01:27:30] [%emt 00:00:16]} 8. c4
{[%clk 01:27:54] [%emt 00:01:29]} Nf6 {[%clk 01:26:38] [%emt 00:01:22]} 9. Nc3
{[%clk 01:28:07] [%emt 00:00:17]} O-O {[%clk 01:26:27] [%emt 00:00:41]} 10. h3
{[%clk 01:28:23] [%emt 00:00:13]} a6 {[%clk 01:25:40] [%emt 00:01:18]} 11. Bxc6
{[%clk 01:28:09] [%emt 00:00:44]} Bxc6 {[%clk 01:25:51] [%emt 00:00:19]} 12. Nd4
{[%clk 01:27:31] [%emt 00:01:07]} Qb6 {[%clk 01:24:03] [%emt 00:02:19]} 13. Rd1
{[%clk 01:22:46] [%emt 00:05:15]} Nd7 {[%clk 01:20:44] [%emt 00:03:49]} 14. Be3
{[%clk 01:20:50] [%emt 00:02:26]} Qxb2 {[%clk 01:19:42] [%emt 00:01:33]} 15.
Rab1 {[%clk 01:20:02] [%emt 00:01:17]} Qa3 {[%clk 01:19:39] [%emt 00:00:32]} 16.
Nxc6 {[%clk 01:20:15] [%emt 00:00:18]} bxc6 {[%clk 01:20:00] [%emt 00:00:10]}
17. Nd5 {[%clk 01:20:37] [%emt 00:00:07]} Qxd3 {[%clk 01:20:25] [%emt 00:00:05]}
18. Nxe7+ {[%clk 01:21:01] [%emt 00:00:06]} Kh8 {[%clk 01:20:49] [%emt
00:00:06]} 19. Rxd3 {[%clk 01:21:23] [%emt 00:00:08]} Ne5 {[%clk 01:20:24] [%emt
00:00:55]} 20. Rxd6 {[%clk 01:21:38] [%emt 00:00:15]} Rae8 {[%clk 01:20:23]
[%emt 00:00:31]} 21. Rb7 {[%clk 01:14:10] [%emt 00:07:58]} Nxc4 {[%clk 01:20:22]
[%emt 00:00:31]} 22. Rd3 {[%clk 01:14:36] [%emt 00:00:04]} Nxe3 {[%clk 01:20:26]
[%emt 00:00:27]} 23. Rxe3 {[%clk 01:15:00] [%emt 00:00:06]} Bd4 {[%clk 01:20:41]
[%emt 00:00:14]} 24. Re2 {[%clk 01:15:12] [%emt 00:00:17]} c5 {[%clk 01:15:34]
[%emt 00:05:38]} 25. Nc6 {[%clk 01:15:24] [%emt 00:00:18]} Bg7 {[%clk 01:02:00]
[%emt 00:14:04]} 26. e5 {[%clk 01:12:50] [%emt 00:03:04]} Re6 {[%clk 00:50:24]
[%emt 00:12:06]} 27. Rc7 {[%clk 01:13:03] [%emt 00:00:16]} Rfe8 {[%clk 00:48:15]
[%emt 00:02:40]} 28. Rc2 {[%clk 01:09:09] [%emt 00:04:24]} Bxe5 {[%clk 00:42:17]
[%emt 00:06:29]} 29. Nxe5 {[%clk 01:09:22] [%emt 00:00:16]} Rxe5 {[%clk
00:42:45] [%emt 00:00:02]} 30. R7xc5 {[%clk 01:08:38] [%emt 00:01:14]} 1/2-1/2

[Site "Europe Echecs"]

[Event "Saint Louis Masters"]
[Date "2024.12.06"]
[White "Theodorou, Nikolas"]
[Black "Nyzhnyk, Illya"]
[WhiteElo "2600"]
[BlackElo "2564"]
[Round "7.10"]
[Result "1/2-1/2"]
[TimeControl "5400+30"]

1. d4 {[%clk 01:30:54] [%emt 00:00:05]} Nf6 {[%clk 01:30:28] [%emt 00:00:33]} 2.
c4 {[%clk 01:31:15] [%emt 00:00:08]} e6 {[%clk 01:30:53] [%emt 00:00:05]} 3. Nf3
{[%clk 01:31:40] [%emt 00:00:05]} d5 {[%clk 01:31:07] [%emt 00:00:16]} 4. g3
{[%clk 01:31:24] [%emt 00:00:46]} Be7 {[%clk 01:31:13] [%emt 00:00:24]} 5. Bg2
{[%clk 01:31:46] [%emt 00:00:08]} O-O {[%clk 01:31:38] [%emt 00:00:06]} 6. Nc3
{[%clk 01:31:47] [%emt 00:00:29]} b6 {[%clk 01:32:02] [%emt 00:00:06]} 7. cxd5
{[%clk 01:24:57] [%emt 00:07:20]} exd5 {[%clk 01:32:24] [%emt 00:00:09]} 8. O-O
{[%clk 01:25:00] [%emt 00:00:27]} Bb7 {[%clk 01:32:38] [%emt 00:00:16]} 9. Ne5
{[%clk 01:22:39] [%emt 00:02:51]} h6 {[%clk 01:01:45] [%emt 00:31:23]} 10. Bf4
{[%clk 01:16:52] [%emt 00:06:16]} c6 {[%clk 00:53:13] [%emt 00:09:04]} 11. e4
{[%clk 01:06:26] [%emt 00:10:55]} Na6 {[%clk 00:35:50] [%emt 00:17:53]} 12. Rc1
{[%clk 01:00:25] [%emt 00:06:32]} dxe4 {[%clk 00:35:18] [%emt 00:01:02]} 13.
Nxe4 {[%clk 01:00:09] [%emt 00:00:45]} Nb4 {[%clk 00:35:13] [%emt 00:00:35]} 14.
Re1 {[%clk 00:52:56] [%emt 00:07:43]} Nbd5 {[%clk 00:29:00] [%emt 00:06:43]} 15.
Bd2 {[%clk 00:48:55] [%emt 00:04:31]} Rc8 {[%clk 00:20:39] [%emt 00:08:51]} 16.
Qa4 {[%clk 00:37:43] [%emt 00:11:42]} a5 {[%clk 00:20:57] [%emt 00:00:13]} 17.
Nxc6 {[%clk 00:35:31] [%emt 00:02:41]} Rxc6 {[%clk 00:06:57] [%emt 00:14:31]}
18. Rxc6 {[%clk 00:35:58] [%emt 00:00:03]} Nxe4 {[%clk 00:07:18] [%emt
00:00:09]} 19. Bxe4 {[%clk 00:35:30] [%emt 00:00:58]} Qd7 {[%clk 00:07:41] [%emt
00:00:07]} 20. Rec1 {[%clk 00:32:29] [%emt 00:03:32]} Bb4 {[%clk 00:08:08] [%emt
00:00:03]} 21. Bh7+ {[%clk 00:18:37] [%emt 00:14:21]} Kh8 {[%clk 00:08:34] [%emt
00:00:03]} 22. Bb1 {[%clk 00:19:04] [%emt 00:00:05]} g6 {[%clk 00:09:01] [%emt
00:00:03]} 23. Bxh6 {[%clk 00:16:43] [%emt 00:02:50]} Re8 {[%clk 00:09:29] [%emt
00:00:02]} 24. Bd3 {[%clk 00:10:35] [%emt 00:06:38]} Nc3 {[%clk 00:09:51] [%emt
00:00:08]} 25. bxc3 {[%clk 00:09:51] [%emt 00:01:15]} Bxc6 {[%clk 00:10:19]
[%emt 00:00:03]} 26. Qb3 {[%clk 00:09:15] [%emt 00:01:05]} a4 {[%clk 00:04:43]
[%emt 00:06:06]} 27. Qd1 {[%clk 00:09:43] [%emt 00:00:02]} Qd5 {[%clk 00:04:17]
[%emt 00:00:56]} 28. f3 {[%clk 00:10:12] [%emt 00:00:01]} Bxc3 {[%clk 00:04:35]
[%emt 00:00:12]} 29. Be2 {[%clk 00:08:11] [%emt 00:02:31]} Qxa2 {[%clk 00:01:44]
[%emt 00:03:21]} 30. Kf1 {[%clk 00:07:17] [%emt 00:01:24]} Bb5 {[%clk 00:00:43]
[%emt 00:01:32]} 31. Bxb5 {[%clk 00:07:14] [%emt 00:00:33]} Re1+ {[%clk
00:01:09] [%emt 00:00:03]} 32. Qxe1 {[%clk 00:07:40] [%emt 00:00:04]} Bxe1
{[%clk 00:01:37] [%emt 00:00:03]} 33. Kxe1 {[%clk 00:05:55] [%emt 00:02:15]} Qb2
{[%clk 00:01:35] [%emt 00:00:32]} 34. Bxa4 {[%clk 00:02:46] [%emt 00:03:39]}
Qb4+ {[%clk 00:02:00] [%emt 00:00:05]} 35. Bd2 {[%clk 00:03:13] [%emt 00:00:03]}
Qxa4 {[%clk 00:02:27] [%emt 00:00:03]} 36. d5 {[%clk 00:03:40] [%emt 00:00:03]}
Kh7 {[%clk 00:01:23] [%emt 00:01:34]} 37. d6 {[%clk 00:02:30] [%emt 00:01:40]}
Qd4 {[%clk 00:01:21] [%emt 00:00:32]} 38. Bf4 {[%clk 00:02:58] [%emt 00:00:01]}
g5 {[%clk 00:01:10] [%emt 00:00:41]} 39. Rd1 {[%clk 00:02:57] [%emt 00:00:32]}
Qg1+ {[%clk 00:00:48] [%emt 00:00:52]} 40. Kd2 {[%clk 00:02:36] [%emt 00:00:51]}
Qf2+ {[%clk 00:00:52] [%emt 00:00:26]} 41. Kc1 {[%clk 00:02:34] [%emt 00:00:33]}
Qc5+ {[%clk 00:01:18] [%emt 00:00:04]} 42. Kb2 {[%clk 00:01:23] [%emt 00:01:41]}
Qb4+ {[%clk 00:01:42] [%emt 00:00:05]} 43. Kc2 {[%clk 00:00:54] [%emt 00:00:59]}
Qa4+ {[%clk 00:01:27] [%emt 00:00:46]} 44. Kc1 {[%clk 00:01:23] [%emt 00:00:02]}
Qc6+ {[%clk 00:01:50] [%emt 00:00:06]} 45. Kb2 {[%clk 00:01:43] [%emt 00:00:10]}
Qd7 {[%clk 00:02:15] [%emt 00:00:05]} 46. Be3 {[%clk 00:01:21] [%emt 00:00:51]}
Kg6 {[%clk 00:02:29] [%emt 00:00:17]} 47. Rd3 {[%clk 00:01:26] [%emt 00:00:25]}
Kf5 {[%clk 00:02:20] [%emt 00:00:39]} 48. Ka3 {[%clk 00:00:35] [%emt 00:01:21]}
Qb5 {[%clk 00:01:23] [%emt 00:01:27]} 49. Rd4 {[%clk 00:01:03] [%emt 00:00:02]}
Qe2 {[%clk 00:01:24] [%emt 00:00:29]} 50. Bd2 {[%clk 00:01:21] [%emt 00:00:13]}
Qa6+ {[%clk 00:01:01] [%emt 00:00:53]} 51. Kb3 {[%clk 00:01:02] [%emt 00:00:48]}
Qb5+ {[%clk 00:01:23] [%emt 00:00:08]} 52. Bb4 {[%clk 00:01:24] [%emt 00:00:08]}
Qd7 {[%clk 00:01:35] [%emt 00:00:18]} 53. h4 {[%clk 00:00:43] [%emt 00:01:10]}
gxh4 {[%clk 00:01:45] [%emt 00:00:20]} 54. gxh4 {[%clk 00:01:10] [%emt
00:00:04]} Ke5 {[%clk 00:02:12] [%emt 00:00:03]} 55. Bc3 {[%clk 00:01:25] [%emt
00:00:15]} Ke6 {[%clk 00:02:37] [%emt 00:00:05]} 56. Kc2 {[%clk 00:01:26] [%emt
00:00:29]} b5 {[%clk 00:02:42] [%emt 00:00:24]} 57. Kd2 {[%clk 00:01:06] [%emt
00:00:51]} f5 {[%clk 00:02:54] [%emt 00:00:19]} 58. h5 {[%clk 00:01:16] [%emt
00:00:19]} b4 {[%clk 00:03:18] [%emt 00:00:06]} 59. Bxb4 {[%clk 00:00:48] [%emt
00:00:58]} Qg7 {[%clk 00:03:33] [%emt 00:00:13]} 60. Kd3 {[%clk 00:00:42] [%emt
00:00:38]} Kd7 {[%clk 00:03:36] [%emt 00:00:27]} 61. Bd2 {[%clk 00:00:34] [%emt
00:00:37]} Qg3 {[%clk 00:03:34] [%emt 00:00:30]} 62. h6 {[%clk 00:00:33] [%emt
00:00:35]} Qxf3+ {[%clk 00:03:59] [%emt 00:00:04]} 63. Kc2 {[%clk 00:00:51]
[%emt 00:00:11]} Qc6+ {[%clk 00:03:55] [%emt 00:00:35]} 64. Bc3 {[%clk 00:01:10]
[%emt 00:00:10]} Qg2+ {[%clk 00:04:19] [%emt 00:00:06]} 65. Bd2 {[%clk 00:01:02]
[%emt 00:00:39]} f4 {[%clk 00:04:26] [%emt 00:00:22]} 66. Rxf4 {[%clk 00:01:06]
[%emt 00:00:26]} Qg6+ {[%clk 00:04:27] [%emt 00:00:29]} 67. Kc3 {[%clk 00:00:56]
[%emt 00:00:39]} Kxd6 {[%clk 00:04:48] [%emt 00:00:09]} 68. Rb4 {[%clk 00:00:51]
[%emt 00:00:35]} Kd5 {[%clk 00:04:54] [%emt 00:00:24]} 69. Kb2 {[%clk 00:00:39]
[%emt 00:00:42]} Qf6+ {[%clk 00:05:07] [%emt 00:00:17]} 70. Kc2 {[%clk 00:00:59]
[%emt 00:00:10]} Qg6+ {[%clk 00:05:33] [%emt 00:00:05]} 71. Kb2 {[%clk 00:01:24]
[%emt 00:00:05]} Qf6+ {[%clk 00:06:00] [%emt 00:00:03]} 72. Kc2 {[%clk 00:01:49]
[%emt 00:00:05]} 1/2-1/2

[Site "Europe Echecs"]

[Event "Saint Louis Masters"]
[Date "2024.12.06"]
[White "Oparin, Grigoriy"]
[Black "Caruana, Fabiano"]
[WhiteElo "2653"]
[BlackElo "2805"]
[Round "8.1"]
[Result "1/2-1/2"]
[TimeControl "5400+30"]

1. e4 {[%clk 01:30:57] [%emt 00:00:02]} e5 {[%clk 01:30:49] [%emt 00:00:12]} 2.
Nf3 {[%clk 01:31:21] [%emt 00:00:05]} Nf6 {[%clk 01:30:56] [%emt 00:00:24]} 3.
Nc3 {[%clk 01:30:37] [%emt 00:01:14]} Nc6 {[%clk 01:31:13] [%emt 00:00:13]} 4.
Bb5 {[%clk 01:31:00] [%emt 00:00:06]} Bb4 {[%clk 01:30:06] [%emt 00:01:38]} 5.
O-O {[%clk 01:28:30] [%emt 00:02:59]} O-O {[%clk 01:29:26] [%emt 00:01:10]} 6.
Bxc6 {[%clk 01:26:29] [%emt 00:02:31]} dxc6 {[%clk 01:29:51] [%emt 00:00:06]} 7.
Nxe5 {[%clk 01:26:56] [%emt 00:00:03]} Bxc3 {[%clk 01:29:59] [%emt 00:00:22]} 8.
dxc3 {[%clk 01:27:20] [%emt 00:00:06]} Nxe4 {[%clk 01:28:35] [%emt 00:01:53]} 9.
Bf4 {[%clk 01:26:38] [%emt 00:01:12]} Bf5 {[%clk 01:25:33] [%emt 00:03:32]} 10.
Nd3 {[%clk 01:25:17] [%emt 00:01:52]} Nd6 {[%clk 01:24:26] [%emt 00:01:37]} 11.
Re1 {[%clk 01:23:40] [%emt 00:02:07]} Re8 {[%clk 01:23:13] [%emt 00:01:43]} 12.
Qf3 {[%clk 01:21:55] [%emt 00:02:15]} Bxd3 {[%clk 01:23:32] [%emt 00:00:11]} 13.
cxd3 {[%clk 01:22:14] [%emt 00:00:12]} Qd7 {[%clk 01:23:20] [%emt 00:00:41]} 14.
Bxd6 {[%clk 01:20:44] [%emt 00:01:59]} cxd6 {[%clk 01:23:40] [%emt 00:00:11]}
15. Re3 {[%clk 01:21:10] [%emt 00:00:04]} Re5 {[%clk 01:23:40] [%emt 00:00:30]}
16. Rae1 {[%clk 01:21:25] [%emt 00:00:15]} Rae8 {[%clk 01:24:04] [%emt
00:00:06]} 17. d4 {[%clk 01:21:38] [%emt 00:00:17]} 1/2-1/2

[Site "Europe Echecs"]

[Event "Saint Louis Masters"]
[Date "2024.12.06"]
[White "Can, Isik"]
[Black "Hakobyan, Aram"]
[WhiteElo "2499"]
[BlackElo "2625"]
[Round "8.2"]
[Result "1/2-1/2"]
[TimeControl "5400+30"]

1. e4 {[%clk 01:26:18] [%emt 00:04:41]} e6 {[%clk 01:30:41] [%emt 00:00:19]} 2.
d4 {[%clk 01:26:04] [%emt 00:00:44]} d5 {[%clk 01:31:03] [%emt 00:00:09]} 3. Nc3
{[%clk 01:26:30] [%emt 00:00:05]} Nf6 {[%clk 01:31:19] [%emt 00:00:14]} 4. Bg5
{[%clk 01:26:54] [%emt 00:00:06]} dxe4 {[%clk 01:31:18] [%emt 00:00:31]} 5. Nxe4
{[%clk 01:27:19] [%emt 00:00:05]} Nbd7 {[%clk 01:31:35] [%emt 00:00:12]} 6. Nf3
{[%clk 01:27:19] [%emt 00:00:30]} Be7 {[%clk 01:31:48] [%emt 00:00:16]} 7. Nxf6+
{[%clk 01:27:40] [%emt 00:00:10]} Bxf6 {[%clk 01:32:09] [%emt 00:00:09]} 8. Bxf6
{[%clk 01:27:44] [%emt 00:00:27]} Nxf6 {[%clk 01:32:23] [%emt 00:00:16]} 9. Bb5+
{[%clk 01:24:19] [%emt 00:03:55]} Bd7 {[%clk 01:32:25] [%emt 00:00:27]} 10. Bd3
{[%clk 01:23:40] [%emt 00:01:10]} c5 {[%clk 01:28:55] [%emt 00:03:59]} 11. dxc5
{[%clk 01:16:45] [%emt 00:07:25]} Qa5+ {[%clk 01:29:13] [%emt 00:00:11]} 12. c3
{[%clk 01:15:35] [%emt 00:01:41]} Qxc5 {[%clk 01:29:35] [%emt 00:00:08]} 13. Qe2
{[%clk 01:15:55] [%emt 00:00:10]} O-O {[%clk 01:29:32] [%emt 00:00:33]} 14. Ne5
{[%clk 01:13:44] [%emt 00:02:42]} Rfd8 {[%clk 01:27:07] [%emt 00:02:54]} 15.
O-O-O {[%clk 01:08:41] [%emt 00:05:33]} Be8 {[%clk 01:23:00] [%emt 00:04:36]}
16. Kb1 {[%clk 01:03:23] [%emt 00:05:49]} Rac8 {[%clk 01:06:28] [%emt 00:17:02]}
17. h4 {[%clk 00:58:07] [%emt 00:05:47]} Rd5 {[%clk 00:58:29] [%emt 00:08:27]}
1/2-1/2

[Site "Europe Echecs"]

[Event "Saint Louis Masters"]
[Date "2024.12.06"]
[White "Heimann, Mark"]
[Black "Robson, Ray"]
[WhiteElo "2459"]
[BlackElo "2700"]
[Round "8.3"]
[Result "1/2-1/2"]
[TimeControl "5400+30"]

1. e4 {[%clk 01:30:26] [%emt 00:00:33]} c5 {[%clk 01:30:10] [%emt 00:00:50]} 2.
Nf3 {[%clk 01:30:52] [%emt 00:00:04]} d6 {[%clk 01:30:21] [%emt 00:00:19]} 3. d4
{[%clk 01:31:18] [%emt 00:00:04]} cxd4 {[%clk 01:30:32] [%emt 00:00:19]} 4. Nxd4
{[%clk 01:31:44] [%emt 00:00:04]} Nf6 {[%clk 01:30:37] [%emt 00:00:25]} 5. Nc3
{[%clk 01:32:10] [%emt 00:00:04]} a6 {[%clk 01:30:33] [%emt 00:00:34]} 6. h4
{[%clk 01:32:26] [%emt 00:00:15]} e5 {[%clk 01:29:40] [%emt 00:01:22]} 7. Nb3
{[%clk 01:32:50] [%emt 00:00:07]} Be7 {[%clk 01:09:11] [%emt 00:20:59]} 8. Bg5
{[%clk 01:32:42] [%emt 00:00:38]} Be6 {[%clk 01:05:30] [%emt 00:04:11]} 9. Bxf6
{[%clk 01:32:54] [%emt 00:00:18]} Bxf6 {[%clk 01:05:45] [%emt 00:00:14]} 10. g3
{[%clk 01:33:20] [%emt 00:00:04]} O-O {[%clk 00:59:16] [%emt 00:06:58]} 11. Qd2
{[%clk 01:29:17] [%emt 00:04:34]} Nc6 {[%clk 00:47:49] [%emt 00:11:58]} 12.
O-O-O {[%clk 01:24:17] [%emt 00:05:30]} Nd4 {[%clk 00:47:38] [%emt 00:00:41]}
13. Kb1 {[%clk 01:24:17] [%emt 00:00:30]} Rc8 {[%clk 00:45:10] [%emt 00:02:57]}
14. Bd3 {[%clk 01:15:41] [%emt 00:09:06]} Re8 {[%clk 00:42:27] [%emt 00:03:14]}
15. Nxd4 {[%clk 01:13:03] [%emt 00:03:08]} exd4 {[%clk 00:42:45] [%emt
00:00:11]} 16. Nd5 {[%clk 01:13:27] [%emt 00:00:06]} Bxd5 {[%clk 00:35:20] [%emt
00:07:56]} 17. exd5 {[%clk 01:13:47] [%emt 00:00:10]} h6 {[%clk 00:29:43] [%emt
00:06:07]} 18. Qf4 {[%clk 01:10:45] [%emt 00:03:32]} Re5 {[%clk 00:29:19] [%emt
00:00:53]} 19. Qg4 {[%clk 01:10:06] [%emt 00:01:11]} Rc5 {[%clk 00:28:12] [%emt
00:01:37]} 20. Rhe1 {[%clk 01:06:45] [%emt 00:03:51]} Rcxd5 {[%clk 00:19:24]
[%emt 00:09:19]} 21. f4 {[%clk 01:05:09] [%emt 00:02:05]} Re3 {[%clk 00:18:42]
[%emt 00:01:12]} 22. Rxe3 {[%clk 01:00:06] [%emt 00:05:33]} dxe3 {[%clk
00:19:08] [%emt 00:00:03]} 23. Bh7+ {[%clk 00:59:50] [%emt 00:00:47]} Kxh7
{[%clk 00:19:24] [%emt 00:00:14]} 24. Rxd5 {[%clk 01:00:17] [%emt 00:00:03]} Qb6
{[%clk 00:19:33] [%emt 00:00:20]} 25. Qf5+ {[%clk 00:57:41] [%emt 00:03:06]} Kg8
{[%clk 00:19:43] [%emt 00:00:20]} 26. Qc8+ {[%clk 00:57:49] [%emt 00:00:22]} Kh7
{[%clk 00:19:55] [%emt 00:00:17]} 27. Qf5+ {[%clk 00:58:13] [%emt 00:00:06]} Kg8
{[%clk 00:20:16] [%emt 00:00:08]} 28. Qc8+ {[%clk 00:58:39] [%emt 00:00:05]} Kh7
{[%clk 00:20:27] [%emt 00:00:19]} 1/2-1/2

[Site "Europe Echecs"]